{"text_format":"1","workbook":"xlsx","n_sheets":3,"sheets":["記録","集計","利用方法"],"not_rendered":{"charts":2,"images":0,"macros":1,"external_links":0,"defined_names":22,"comments":1,"pivot_tables":0},"unopened":[],"bounds":{"document_bytes":16777216,"sheet_cells":100000,"rows_first":2000,"rows_last":500,"rows_between":2000,"halvings":0,"cell_chars":16384,"cell_head_chars":4096},"cells_cut":0,"cells_raw":0,"read":"whole","date_system":"1900"}

{"sheet":"記録","index":0,"n_rows":115,"n_cols":12,"rows_kept":115,"cut":false,"hidden":false,"merged":[[39,10,65,11],[96,10,104,11],[8,0,20,0],[8,1,20,2],[21,0,38,0],[21,1,38,2],[39,0,65,0],[39,1,65,2],[66,1,70,2],[71,1,75,2],[76,1,80,2],[81,1,85,2],[80,3,80,5],[81,3,81,5],[98,3,98,5],[99,3,99,5],[100,3,100,5],[101,3,101,5],[102,3,102,5],[104,3,104,5],[103,3,103,5],[91,3,91,5],[86,1,90,2],[91,1,95,2],[96,0,104,0],[96,1,104,2],[95,3,95,5],[96,3,96,5],[97,3,97,5],[86,3,86,5],[87,3,87,5],[88,3,88,5],[89,3,89,5],[90,3,90,5],[92,3,92,5],[93,3,93,5],[94,3,94,5],[66,0,95,0],[109,0,109,11],[110,6,110,7],[111,6,111,7],[105,5,108,11],[110,8,110,9],[111,8,111,9],[105,0,108,0],[105,1,105,3],[106,1,106,3],[108,1,108,3],[107,1,107,3],[110,5,111,5],[105,4,108,4],[82,3,82,5],[83,3,83,5],[84,3,84,5],[85,3,85,5],[74,3,74,5],[75,3,75,5],[76,3,76,5],[77,3,77,5],[78,3,78,5],[79,3,79,5],[68,3,68,5],[69,3,69,5],[70,3,70,5],[71,3,71,5],[72,3,72,5],[73,3,73,5],[62,3,62,5],[63,3,63,5],[64,3,64,5],[65,3,65,5],[66,3,66,5],[67,3,67,5],[56,3,56,5],[57,3,57,5],[58,3,58,5],[59,3,59,5],[60,3,60,5],[61,3,61,5],[50,3,50,5],[51,3,51,5],[52,3,52,5],[53,3,53,5],[54,3,54,5],[55,3,55,5],[47,3,47,5],[48,3,48,5],[49,3,49,5],[38,3,38,5],[39,3,39,5],[40,3,40,5],[41,3,41,5],[42,3,42,5],[43,3,43,5],[44,3,44,5],[45,3,45,5],[0,0,0,2],[16,3,16,5],[17,3,17,5],[18,3,18,5],[19,3,19,5],[20,3,20,5],[8,3,8,5],[9,3,9,5],[10,3,10,5],[11,3,11,5],[12,3,12,5],[13,3,13,5],[14,3,14,5],[15,3,15,5],[2,4,2,8],[3,0,3,4],[3,5,3,11],[4,0,4,4],[4,5,4,11],[8,10,20,11],[5,0,7,5],[5,10,7,11],[1,0,2,0],[1,1,1,3],[66,10,95,11],[2,1,2,3],[1,4,1,8],[1,9,1,11],[2,9,2,11],[26,3,26,5],[21,3,21,5],[22,3,22,5],[23,3,23,5],[24,3,24,5],[25,3,25,5],[21,10,38,11],[27,3,27,5],[28,3,28,5],[29,3,29,5],[30,3,30,5],[31,3,31,5],[32,3,32,5],[33,3,33,5],[34,3,34,5],[35,3,35,5],[36,3,36,5],[37,3,37,5],[46,3,46,5]]}
[null,null,null,"年度      合理的配慮分析表（イコールレーダー）"]
["名前",null,null,null,"生年月日",null,null,null,null,"記録者名"]
[null,null,null,null,"1969-01-01"]
["家庭状況",null,null,null,null,"配慮のポイント"]
[]
["項目 記入について",null,null,null,null,null,"激しい","多い","時々","少し","特記事項"]
[]
[]
["(1)行動課題BD",null,null,"自分を叩いたり傷つけたりする。"]
[null,null,null,"他人を叩いたり傷つけたりする。"]
[null,null,null,"こだわりがある。"]
[null,null,null,"器物破損がある。"]
[null,null,null,"睡眠課題(不眠・傾眠)がある。"]
[null,null,null,"異食・過食・拒食・反芻等がある。"]
[null,null,null,"排泄に関する強度の課題がある。"]
[null,null,null,"多動や徘徊がある。"]
[null,null,null,"奇声や大声等の行動がある。"]
[null,null,null,"興奮やパニックがある。"]
[null,null,null,"粗暴行為がある。"]
[null,null,null,"知覚過敏(聴覚・触覚・臭覚等)がある。"]
[null,null,null,"唾吐き、ゴミ触り等の不潔行為がある。"]
["(2)行動面①ADHD",null,null,"学校での勉強を、細かいところまで注意を払わなかったり不注意な間違いをしたりする。"]
[null,null,null,"手足をそわそわ動かしたり、着席していても、もじもじしたりする。"]
[null,null,null,"課題や遊びの活動で注意を集中し続けることが難しい。"]
[null,null,null,"授業中や座っているべき時に席を離れてしまう。"]
[null,null,null,"面と向かって話しかけられているのに、聞いていないように見える。"]
[null,null,null,"きちんとしていなければならない時に、過度に走り回ったりよじ登ったりする。"]
[null,null,null,"指示に従えず、また仕事を最後までやり遂げない。"]
[null,null,null,"遊びや余暇活動におとなしく参加することが難しい。"]
[null,null,null,"学習課題や活動を順序立てて行うことが難しい。"]
[null,null,null,"じっとしていあに、または何かに駆り立てられるように活動する。"]
[null,null,null,"集中して努力を続けなければならない課題(学校の勉強や宿題など)を避ける。"]
[null,null,null,"過度にしゃべる。"]
[null,null,null,"学習課題や活動に必要なものをなくしてしまう。"]
[null,null,null,"質問が終わらないうちに出し抜けに答えてしまう。"]
[null,null,null,"気が散りやすい。"]
[null,null,null,"順番を待つのが難しい。"]
[null,null,null,"日々の活動で忘れっぽい。"]
[null,null,null,"他の人がしていることをさえぎったり、じゃましたりする。"]
["(3)行動面②ASD",null,null,"大人びている・ませている。"]
[null,null,null,"みんなから「○○博士」「○○教授」と思われている。(例:カレンダー博士)"]
[null,null,null,"他の子どもは興味を持たないようなことに興味があり「自分だけの知識世界」を持っている。"]
[null,null,null,"特定の分野の知識を蓄えているが、丸暗記であり、意味をきちんと理解していない。"]
[null,null,null,"含みのある言葉や嫌みを言われても分からず、言葉通りに受け止めてしまうことがある。"]
[null,null,null,"会話の仕方が形式的であり、抑揚もなく話したり、間合いが取れなかったりすることがある。"]
[null,null,null,"言葉を組み合わせて、自分だけにしか分からないような造語を作る。"]
[null,null,null,"独特の声で話すことがある。"]
[null,null,null,"誰かに何かを伝える目的がなくても、場面に関係なく声を出す。(例:唇を鳴らす、咳払い、喉を鳴らす、叫ぶ)"]
[null,null,null,"とても得意なことがある一方で、極端に不得手なものがある。"]
[null,null,null,"いろいろなことを話すが、その時の場面や相手の感情や立場を理解しない。"]
[null,null,null,"共感性が乏しい。"]
[null,null,null,"周りの人が困惑するようなことも、配慮しないで言ってしまう。"]
[null,null,null,"独特な目つきをすることがある。"]
[null,null,null,"友達と仲良くしたいという気持ちはあるけれど、友達関係をうまく築けない。"]
[null,null,null,"友達のそばにはいるが、一人で遊んでいる。"]
[null,null,null,"仲の良い友人がいない。"]
[null,null,null,"常識が乏しい。"]
[null,null,null,"球技やゲームをする時、仲間と協力することに考えが及ばない。"]
[null,null,null,"動作やジェスチャーが不器用で、ぎこちないことがある。"]
[null,null,null,"意図的でなく、顔や体を羽動かすことがある。"]
[null,null,null,"ある行動や考えに強くこだわることによって、簡単な日常の活動ができなくなることがある。"]
[null,null,null,"自分なりの独特な日課や手順があり、変更や変化を嫌がる。"]
[null,null,null,"特定の物に執着がある。"]
[null,null,null,"他の子ども達から、いじめられることがある。"]
[null,null,null,"独特な表情をしていることがある。"]
[null,null,null,"独特な姿勢をしていることがある。"]
["(4)学習面LD","聞く",null,"聞き間違いがある。(「知った」を「行った」と聞き間違える)"]
[null,null,null,"聞きもらしがある。"]
[null,null,null,"個別に言われると聞き取れるが、集団場面では難しい。"]
[null,null,null,"指示の理解が難しい。"]
[null,null,null,"話し合いが難しい。(話し合いの流れが理解できず、ついていけない)"]
[null,"話す",null,"適切な速さで話すことが難しい。(たどたどしく話す・とても早口である)"]
[null,null,null,"ことばにつまったりする。"]
[null,null,null,"単語を羅列したり、短い文で内容に乏しい話をする。"]
[null,null,null,"思いつくままに話すなど、筋道の通った話をするのが難しい。"]
[null,null,null,"内容をわかりやすく伝えることが難しい。"]
[null,"読む",null,"初めて出てきた語や、普段あまり使わない語などを読み間違える。"]
[null,null,null,"文中の語句や行を抜かしたり、または繰り返し読んだりする。"]
[null,null,null,"音読が遅い。"]
[null,null,null,"勝手読みがある。(「いきました」を「いました」と読む)"]
[null,null,null,"文章の要点を正しく読み取ることが難しい。"]
[null,"書く",null,"読みにくい字を書く。(字の形や大きさが整っていない・まっすぐに書けない)"]
[null,null,null,"独特の筆順で書く。"]
[null,null,null,"漢字の細かい部分を書き間違える。"]
[null,null,null,"句読点が抜けたり、正しく打つことができない。"]
[null,null,null,"限られた量の作文や、決まったパターンの文章しか書かない。"]
[null,"計算する",null,"学年相応の数の意味や表し方についての理解が難しい。(三千四十七を300047や347と書く。分母の大きい方が分数の値として大きいと思っている。)"]
[null,null,null,"簡単な計算が暗算できない。"]
[null,null,null,"計算をするのにとても時間がかかる。"]
[null,null,null,"答えを得るのにいくつかの手続きを要する問題を解くのが難しい。(四則演算の計算。2つの立式を必要とする計算。)"]
[null,null,null,"学年相応の文章題を解くのが難しい。"]
[null,"推論する",null,"学年相応の量を比較することや、量を表す単位を理解することが難しい。(長さやかさの比較。「15cmは150mm」ということ。)"]
[null,null,null,"学年相応の図形を描くことが難しい。(丸やひし形などの図形の模写。見取り図や展開図。)"]
[null,null,null,"事物の因果関係を理解することが難しい。"]
[null,null,null,"目的に沿って計画し、必要に応じてそれを修正することが難しい。"]
[null,null,null,"早合点や、飛躍した考えをする。"]
["(5)日常生活ADL",null,null,"集団行動に困難がある。"]
[null,null,null,"食事場面に於いて支援を必要とする。"]
[null,null,null,"排泄面で支援を必要とする。"]
[null,null,null,"衣服の着脱面で支援を必要とする。"]
[null,null,null,"入浴場面に於いて支援を必要とする。"]
[null,null,null,"歯磨きすることの多くの点で支援を必要とする。"]
[null,null,null,"金銭の管理で支援を必要とする。"]
[null,null,null,"危険予知で支援を必要とする。"]
[null,null,null,"公共施設利用で支援を必要とする。"]
[null,null,null,null,"総合所見"]
[null,"2016-04-01"]
[null,{"$f":"\"            ( \" & DATEDIF($E$3,$B$107,\"y\") & \" 歳 \" & DATEDIF($E$3,$B$107,\"ym\") & \" ヶ月)\"","v":"            ( 47 歳 3 ヶ月)"}]
[]
["※記入について…当てはまる(○)・当てはまらない(空欄)"]
[null,null,null,null,null,"総数","激しい",null,"多い",null,"時々","少し"]
[null,null,null,null,null,null,{"$f":"SUM(集計!$D$3:$D$7)","v":0},null,{"$f":"SUM(集計!$D$3:$E$7)","v":0},null,{"$f":"SUM(集計!$D$3:$F$7)","v":0},{"$f":"SUM(集計!$D$3:$G$7)","v":0}]
[]
[null,null,null,null,null,"※グラフ・総数欄の値は、その評価よりも強い評価の"]
[null,null,null,null,null,"　○の数も合計したものです。"]

{"sheet":"集計","index":1,"n_rows":14,"n_cols":7,"rows_kept":14,"cut":false,"hidden":false,"merged":[]}
["集計"]
[null,null,"項目数","激しい","多い","時々","少し"]
[1,"BD",{"$f":"COUNTA(項目1_1期)+COUNTBLANK(項目1_1期)","v":13},{"$f":"COUNTA(項目1_1期)-COUNTIF(項目1_1期,\"/\") -COUNTIF(項目1_1期,\"／\") -COUNTIF(項目1_1期,\" \") -COUNTIF(項目1_1期,\"　\")","v":0},{"$f":"COUNTA(項目1_2期)-COUNTIF(項目1_2期,\"/\") -COUNTIF(項目1_2期,\"／\") -COUNTIF(項目1_2期,\" \") -COUNTIF(項目1_2期,\"　\")","v":0},{"$f":"COUNTA(項目1_3期)-COUNTIF(項目1_3期,\"/\") -COUNTIF(項目1_3期,\"／\") -COUNTIF(項目1_3期,\" \") -COUNTIF(項目1_3期,\"　\")","v":0},{"$f":"COUNTA(項目1_4期)-COUNTIF(項目1_4期,\"/\") -COUNTIF(項目1_4期,\"／\") -COUNTIF(項目1_4期,\" \") -COUNTIF(項目1_4期,\"　\")","v":0}]
[2,"ADHD",{"$f":"COUNTA(項目2_1期)+COUNTBLANK(項目2_1期)","v":18},{"$f":"COUNTA(項目2_1期)-COUNTIF(項目2_1期,\"/\") -COUNTIF(項目2_1期,\"／\") -COUNTIF(項目2_1期,\" \") -COUNTIF(項目2_1期,\"　\")","v":0},{"$f":"COUNTA(項目2_2期)-COUNTIF(項目2_2期,\"/\") -COUNTIF(項目2_2期,\"／\") -COUNTIF(項目2_2期,\" \") -COUNTIF(項目2_2期,\"　\")","v":0},{"$f":"COUNTA(項目2_3期)-COUNTIF(項目2_3期,\"/\") -COUNTIF(項目2_3期,\"／\") -COUNTIF(項目2_3期,\" \") -COUNTIF(項目2_3期,\"　\")","v":0},{"$f":"COUNTA(項目2_4期)-COUNTIF(項目2_4期,\"/\") -COUNTIF(項目2_4期,\"／\") -COUNTIF(項目2_4期,\" \") -COUNTIF(項目2_4期,\"　\")","v":0}]
[3,"ASD",{"$f":"COUNTA(項目3_1期)+COUNTBLANK(項目3_1期)","v":27},{"$f":"COUNTA(項目3_1期)-COUNTIF(項目3_1期,\"/\") -COUNTIF(項目3_1期,\"／\") -COUNTIF(項目3_1期,\" \") -COUNTIF(項目3_1期,\"　\")","v":0},{"$f":"COUNTA(項目3_2期)-COUNTIF(項目3_2期,\"/\") -COUNTIF(項目3_2期,\"／\") -COUNTIF(項目3_2期,\" \") -COUNTIF(項目3_2期,\"　\")","v":0},{"$f":"COUNTA(項目3_3期)-COUNTIF(項目3_3期,\"/\") -COUNTIF(項目3_3期,\"／\") -COUNTIF(項目3_3期,\" \") -COUNTIF(項目3_3期,\"　\")","v":0},{"$f":"COUNTA(項目3_4期)-COUNTIF(項目3_4期,\"/\") -COUNTIF(項目3_4期,\"／\") -COUNTIF(項目3_4期,\" \") -COUNTIF(項目3_4期,\"　\")","v":0}]
[4,"LD",{"$f":"COUNTA(項目4_1期)+COUNTBLANK(項目4_1期)","v":30},{"$f":"COUNTA(項目4_1期)-COUNTIF(項目4_1期,\"/\") -COUNTIF(項目4_1期,\"／\") -COUNTIF(項目4_1期,\" \") -COUNTIF(項目4_1期,\"　\")","v":0},{"$f":"COUNTA(項目4_2期)-COUNTIF(項目4_2期,\"/\") -COUNTIF(項目4_2期,\"／\") -COUNTIF(項目4_2期,\" \") -COUNTIF(項目4_2期,\"　\")","v":0},{"$f":"COUNTA(項目4_3期)-COUNTIF(項目4_3期,\"/\") -COUNTIF(項目4_3期,\"／\") -COUNTIF(項目4_3期,\" \") -COUNTIF(項目4_3期,\"　\")","v":0},{"$f":"COUNTA(項目4_4期)-COUNTIF(項目4_4期,\"/\") -COUNTIF(項目4_4期,\"／\") -COUNTIF(項目4_4期,\" \") -COUNTIF(項目4_4期,\"　\")","v":0}]
[5,"ADL",{"$f":"COUNTA(項目5_1期)+COUNTBLANK(項目5_1期)","v":9},{"$f":"COUNTA(項目5_1期)-COUNTIF(項目5_1期,\"/\") -COUNTIF(項目5_1期,\"／\") -COUNTIF(項目5_1期,\" \") -COUNTIF(項目5_1期,\"　\")","v":0},{"$f":"COUNTA(項目5_2期)-COUNTIF(項目5_2期,\"/\") -COUNTIF(項目5_2期,\"／\") -COUNTIF(項目5_2期,\" \") -COUNTIF(項目5_2期,\"　\")","v":0},{"$f":"COUNTA(項目5_3期)-COUNTIF(項目5_3期,\"/\") -COUNTIF(項目5_3期,\"／\") -COUNTIF(項目5_3期,\" \") -COUNTIF(項目5_3期,\"　\")","v":0},{"$f":"COUNTA(項目5_4期)-COUNTIF(項目5_4期,\"/\") -COUNTIF(項目5_4期,\"／\") -COUNTIF(項目5_4期,\" \") -COUNTIF(項目5_4期,\"　\")","v":0}]
[]
[null,null,null,"激しい","多い","時々","少し"]
[null,null,"BD",{"$f":"SUM($D3:D3)/$C3","v":0},{"$f":"SUM($D3:E3)/$C3","v":0},{"$f":"SUM($D3:F3)/$C3","v":0},{"$f":"SUM($D3:G3)/$C3","v":0}]
[null,null,"ADHD",{"$f":"SUM($D4:D4)/$C4","v":0},{"$f":"SUM($D4:E4)/$C4","v":0},{"$f":"SUM($D4:F4)/$C4","v":0},{"$f":"SUM($D4:G4)/$C4","v":0}]
[null,null,"ASD",{"$f":"SUM($D5:D5)/$C5","v":0},{"$f":"SUM($D5:E5)/$C5","v":0},{"$f":"SUM($D5:F5)/$C5","v":0},{"$f":"SUM($D5:G5)/$C5","v":0}]
[null,null,"LD",{"$f":"SUM($D6:D6)/$C6","v":0},{"$f":"SUM($D6:E6)/$C6","v":0},{"$f":"SUM($D6:F6)/$C6","v":0},{"$f":"SUM($D6:G6)/$C6","v":0}]
[null,null,"ADL",{"$f":"SUM($D7:D7)/$C7","v":0},{"$f":"SUM($D7:E7)/$C7","v":0},{"$f":"SUM($D7:F7)/$C7","v":0},{"$f":"SUM($D7:G7)/$C7","v":0}]

{"sheet":"利用方法","index":2,"n_rows":20,"n_cols":1,"rows_kept":20,"cut":false,"hidden":false,"merged":[]}
["利用方法"]
[]
["開いたときに、「マクロが無効にされました。」のような警告が出ているときは、「オプション」から「このコンテンツを有効にする」を選び、マクロを有効にしてください。"]
["マクロを有効にすると、クリックで○をつけたり消したりする機能を使うことができます。"]
["(その他の集計・グラフ表示機能等は、マクロが無効でも動作します。)"]
["グラフおよび総数欄の値は、それより強い評価の数も合計したものです。"]
["(例:「時々」欄の値は、「時々」と「多い」と「激しい」の○の数の合計となります。)"]
[]
["「記録」シートに入力し、印刷を行ってください。"]
["「集計」シートは計算用のシートなので、ここには直接入力を行わないでください。集計ができなくなることがあります。"]
["「集計」シートを印刷すると、グラフのみをA4サイズで印刷できます。"]
[]
["チェック欄は、クリックすると○をつけることができます。"]
["○を入力すると、左右にある他の評価の○が消えます。"]
["○がついているところをクリックすると、○が消えます。"]
["クリック直後、同じセルをクリックしても○の有無が変わりません。このときはダブルクリックしてください。"]
["範囲指定後Deleteですべて消したり、範囲指定後コピーなどもできます。"]
["空欄以外にも、/(スラッシュ)も空欄とみなし集計します。"]
[]
["その他、セルの右上に三角がついている箇所のコメントをご参照ください。"]